fUSD/lending_fUSD_20240214
["ID","MTS","AMOUNT","RATE_DAILY","PERIOD"]
[314064535,1707952278576,-2000.0,0.0003788,2]
[314064536,1707952278585,-200.0,0.0003788,2]
[314064537,1707952278595,-11830.7360951,0.0003788,2]
[314064538,1707952278604,-150.0,0.00037899,2]
[314064539,1707952278614,-493.0,0.000379,4]
[314064540,1707952278623,-1000.0,0.000379,2]
[314064541,1707952278633,-632058.309362,0.000379,3]
[314064542,1707952278642,-912.02432928,0.000379,2]
[314064543,1707952278654,-153.66262798,0.000379,28]
[314064544,1707952278666,-9614.92566575,0.000379,2]
[314064545,1707952278675,-1058.0,0.000379,7]
[314064546,1707952278685,-214.96077358,0.000379,2]
[314064547,1707952278696,-1060.9642385,0.000379,2]
[314064548,1707952278706,-357.92154888,0.000379,2]
[314064549,1707952278715,-556.2,0.00037914,2]
[314064550,1707952278724,-195.935586,0.00037922,2]
[314064551,1707952278733,-100000.0,0.00038,8]
[314064552,1707952278742,-600.0,0.00038,39]
[314064553,1707952278751,-252.23743052,0.00038,7]
[314064554,1707952278760,-934.87249772,0.00038,2]
[314064555,1707952278770,-1638864.20418875,0.00038,2]
[314064556,1707952278779,-1000.0,0.00038,7]
[314064557,1707952278789,-5800.0,0.00038031,2]
[314064558,1707952278799,-200.0,0.00038034,15]
[314064559,1707952278809,-5800.0,0.00038039,2]
[314064560,1707952278818,-5800.0,0.00038048,2]
[314064561,1707952278827,-5800.0,0.00038056,2]
[314064562,1707952278838,-5800.0,0.00038065,2]
[314064563,1707952278847,-956.22,0.00038069,2]
[314064564,1707952278857,-5800.0,0.00038074,2]
[314064565,1707952278866,-1778.82,0.00038082,5]
[314064566,1707952278875,-5800.0,0.00038082,2]
[314064567,1707952278885,-5800.0,0.00038082,2]
[314064568,1707952278894,-500.0,0.00038082,7]
[314064569,1707952278905,-500.0,0.00038082,7]
[314064570,1707952278915,-615.56,0.00038082,7]
[314064571,1707952278923,-500.0,0.00038082,7]
[314064572,1707952278933,-500.0,0.00038082,7]
[314064573,1707952278942,-520.1,0.00038082,7]
[314064574,1707952278951,-500.0,0.00038082,7]
[314064575,1707952278961,-559.88,0.00038082,7]
[314064576,1707952278970,-500.0,0.00038082,7]
[314064577,1707952278988,-711.99,0.00038082,7]
[314064578,1707952279000,-729.44,0.00038082,7]
[314064579,1707952279010,-559.36,0.00038082,7]
[314064580,1707952279019,-1586.82,0.00038082,7]
[314064581,1707952279029,-549.31,0.00038082,7]
[314064582,1707952279042,-500.0,0.00038082,7]
[314064583,1707952279054,-500.0,0.00038082,7]
[314064584,1707952279064,-712.41,0.00038082,7]
[314064585,1707952279075,-1388.92,0.00038082,7]
[314064586,1707952279085,-649.81,0.00038082,7]
[314064587,1707952279095,-500.0,0.00038082,7]
[314064588,1707952279105,-530.34,0.00038082,7]
[314064589,1707952279114,-500.0,0.00038082,7]
[314064590,1707952279125,-5800.0,0.00038082,2]
[314064591,1707952279135,-500.0,0.00038082,7]
[314064592,1707952279145,-500.0,0.00038082,7]
[314064593,1707952279157,-500.0,0.00038082,7]
[314064594,1707952279168,-726.49,0.00038082,7]
[314064595,1707952279179,-564.24,0.00038082,7]
[314064596,1707952279190,-500.0,0.00038082,7]
[314064597,1707952279201,-598.26,0.00038082,7]
[314064598,1707952279211,-500.0,0.00038082,7]
[314064599,1707952279223,-500.0,0.00038082,7]
[314064600,1707952279235,-526.84,0.00038082,7]
[314064601,1707952279244,-789.32,0.00038082,7]
[314064602,1707952279254,-500.0,0.00038082,7]
[314064603,1707952279264,-500.0,0.00038082,7]
[314064604,1707952279274,-500.0,0.00038082,7]
[314064605,1707952279283,-500.0,0.00038082,7]
[314064606,1707952279293,-500.0,0.00038082,7]
[314064607,1707952279303,-500.0,0.00038082,7]
[314064608,1707952279313,-500.0,0.00038082,7]
[314064609,1707952279324,-904.24,0.00038082,7]
[314064610,1707952279334,-680.52,0.00038082,7]
[314064611,1707952279343,-500.0,0.00038082,7]
[314064612,1707952279353,-500.0,0.00038082,7]
[314064613,1707952279363,-719.08,0.00038082,7]
[314064614,1707952279375,-500.0,0.00038082,7]
[314064615,1707952279384,-500.0,0.00038082,7]
[314064616,1707952279394,-500.0,0.00038082,7]
[314064617,1707952279405,-1770.34,0.00038082,7]
[314064618,1707952279415,-786.82,0.00038082,7]
[314064619,1707952279424,-595.06,0.00038082,7]
[314064620,1707952279435,-500.0,0.00038082,7]
[314064621,1707952279444,-1444.37805503,0.000381,2]
[314064622,1707952279455,-1634.0,0.00038102,20]
[314064623,1707952279465,-337.0,0.00038102,20]
[314064624,1707952279476,-556.2,0.00038102,2]
[314064625,1707952279488,-151.021521,0.00038198,21]
[314064626,1707952279498,-346.0,0.000382,2]
[314064627,1707952279507,-921.4,0.000382,2]
[314064628,1707952279517,-10928.88,0.00038219,2]
[314064629,1707952279527,-2000.0,0.00038259,2]
[314064630,1707952279537,-200.0,0.00038259,2]
[314064631,1707952279546,-2000.0,0.00038259,2]
[314064632,1707952279713,-200.0,0.00038259,2]
[314064633,1707952279723,-556.2,0.0003829,2]
[314064634,1707952279732,-150.0,0.00038307,2]
[314064635,1707952279742,-1062.19,0.00038352,2]
[314064636,1707952279751,-280.12362324,0.00038356,2]
[314064637,1707952279760,-500.0,0.00038356,7]
[314064638,1707952279770,-500.0,0.00038356,7]
[314064639,1707952279780,-615.56,0.00038356,7]
[314064640,1707952279791,-500.0,0.00038356,20]
[314064641,1707952279800,-500.0,0.00038356,20]
[314064642,1707952279810,-500.0,0.00038356,20]
[314064643,1707952279820,-500.0,0.00038356,20]
[314064644,1707952279829,-500.0,0.00038356,20]
[314064645,1707952279839,-500.0,0.00038356,20]
[314064646,1707952279848,-500.0,0.00038356,20]
[314064647,1707952279857,-500.0,0.00038356,20]
[314064648,1707952279868,-500.0,0.00038356,20]
[314064649,1707952279878,-500.0,0.00038356,20]
[314064650,1707952279888,-500.0,0.00038356,20]
[314064651,1707952279898,-187.35,0.00038356,7]
[314064652,1707952279907,-314.6,0.00038356,7]
[314064653,1707952279915,-500.0,0.00038356,7]
[314064654,1707952279925,-559.88,0.00038356,7]
[314064655,1707952279934,-442.67400586,0.00038356,7]
[314064656,1707952279943,-522.20331034,0.00038356,7]
[314064657,1707952279953,-711.99,0.00038356,7]
[314064658,1707952279963,-729.44,0.00038356,7]
[314064659,1707952279973,-559.36,0.00038356,7]
[314064660,1707952279984,-1586.82,0.00038356,7]
[314064661,1707952279993,-549.31,0.00038356,7]
[314064662,1707952280003,-500.0,0.00038356,7]
[314064663,1707952280013,-500.0,0.00038356,7]
[314064664,1707952280023,-712.41,0.00038356,7]
[314064665,1707952280032,-1388.92,0.00038356,7]
[314064666,1707952280045,-649.81,0.00038356,7]
[314064667,1707952280055,-500.0,0.00038356,7]
[314064668,1707952280065,-530.34,0.00038356,7]
[314064669,1707952280074,-500.0,0.00038356,7]
[314064670,1707952280084,-500.0,0.00038356,7]
[314064671,1707952280094,-500.0,0.00038356,7]
[314064672,1707952280105,-500.0,0.00038356,7]
[314064673,1707952280114,-726.49,0.00038356,7]
[314064674,1707952280125,-564.24,0.00038356,7]
[314064675,1707952280135,-500.0,0.00038356,7]
[314064676,1707952280145,-598.26,0.00038356,7]
[314064677,1707952280155,-500.0,0.00038356,7]
[314064678,1707952280165,-500.0,0.00038356,7]
[314064679,1707952280174,-526.84,0.00038356,7]
[314064680,1707952280188,-789.32,0.00038356,7]
[314064681,1707952280197,-500.0,0.00038356,7]
[314064682,1707952280207,-500.0,0.00038356,7]
[314064683,1707952280216,-500.0,0.00038356,7]
[314064684,1707952280226,-500.0,0.00038356,7]
[314064685,1707952280235,-500.0,0.00038356,7]
[314064686,1707952280244,-500.0,0.00038356,7]
[314064687,1707952280254,-500.0,0.00038356,7]
[314064688,1707952280263,-904.24,0.00038356,7]
[314064689,1707952280274,-680.52,0.00038356,7]
[314064690,1707952280283,-500.0,0.00038356,7]
[314064691,1707952280293,-500.0,0.00038356,7]
[314064692,1707952280303,-719.08,0.00038356,7]
[314064693,1707952280313,-634.47,0.00038356,7]
[314064694,1707952280322,-500.0,0.00038356,7]
[314064695,1707952280332,-500.0,0.00038356,7]
[314064696,1707952280342,-1770.34,0.00038356,7]
[314064697,1707952280352,-786.82,0.00038356,7]
[314064698,1707952280361,-595.06,0.00038356,7]
[314064699,1707952280371,-262.01,0.00038356,7]
[314064700,1707952280381,-156.316552,0.00038356,7]
[314064701,1707952280391,-735.43120322,0.00038356,2]
[314064702,1707952280401,-157.75,0.00038356,2]
[314064703,1707952280410,-151.0,0.00038356,7]
[314064704,1707952280420,-151.0,0.00038356,7]
[314064705,1707952280429,-151.0,0.00038356,7]
[314064706,1707952280439,-151.0,0.00038356,7]
[314064707,1707952280449,-151.0,0.00038356,7]
[314064708,1707952280458,-180.746658,0.00038356,7]
[314064709,1707952280468,-151.0,0.00038356,7]
[314064710,1707952280477,-151.0,0.00038356,7]
[314064711,1707952280488,-154.166773,0.00038356,7]
[314064712,1707952280497,-2924.0,0.0003836,2]
[314064713,1707952280506,-8156.0,0.0003836,2]
[314064714,1707952280516,-7409.0,0.0003836,2]
[314064715,1707952280526,-2287.0,0.0003836,2]
[314064716,1707952280535,-19827.0,0.0003836,2]
[314064717,1707952280545,-1037.0,0.0003836,2]
[314064718,1707952280554,-195.935586,0.00038396,2]
[314064719,1707952280564,-527.05115,0.000384,2]
[314064720,1707952280573,-556.2,0.00038478,2]
[314064721,1707952280583,-1634.0,0.00038494,20]
[314064722,1707952280593,-337.0,0.00038494,20]
[314064723,1707952280603,-151.021521,0.00038498,21]
[314064724,1707952280612,-914.99,0.00038508,2]
[314064725,1707952280622,-914.99,0.00038508,2]
[314064726,1707952280632,-913.4,0.00038508,2]
[314064727,1707952280642,-349.50773076,0.00038543,10]
[314064728,1707952280653,-200.0,0.00038575,2]
[314064729,1707952280663,-315.76,0.000386,2]
[314064730,1707952280672,-500.0,0.0003863,7]
[314064731,1707952280682,-500.0,0.0003863,7]
[314064732,1707952280691,-615.56,0.0003863,7]
[314064733,1707952280701,-500.0,0.0003863,20]
[314064734,1707952280710,-500.0,0.0003863,7]
[314064735,1707952280720,-559.88,0.0003863,7]
[314064736,1707952280729,-711.99,0.0003863,7]
[314064737,1707952280739,-729.44,0.0003863,7]
[314064738,1707952280748,-559.36,0.0003863,7]
[314064739,1707952280757,-1586.82,0.0003863,7]
[314064740,1707952280767,-549.31,0.0003863,7]
[314064741,1707952280776,-500.0,0.0003863,7]
[314064742,1707952280786,-500.0,0.0003863,7]
[314064743,1707952280796,-712.41,0.0003863,7]
[314064744,1707952280806,-1388.92,0.0003863,7]
[314064745,1707952280815,-649.81,0.0003863,7]
[314064746,1707952280825,-500.0,0.0003863,7]
[314064747,1707952280835,-530.34,0.0003863,7]
[314064748,1707952280845,-500.0,0.0003863,7]
[314064749,1707952280854,-500.0,0.0003863,7]
[314064750,1707952280864,-566.63547233,0.0003863,7]
[314064751,1707952280873,-500.0,0.0003863,7]
[314064752,1707952280883,-726.49,0.0003863,7]
[314064753,1707952280897,-564.24,0.0003863,7]
[314064754,1707952280908,-500.0,0.0003863,7]
[314064755,1707952280917,-598.26,0.0003863,7]
[314064756,1707952280927,-500.0,0.0003863,7]
[314064757,1707952280936,-500.0,0.0003863,7]
[314064758,1707952280946,-526.84,0.0003863,7]
[314064759,1707952280955,-789.32,0.0003863,7]
[314064760,1707952280964,-415.8,0.0003863,7]
[314064761,1707952280974,-500.0,0.0003863,7]
[314064762,1707952280984,-176.03651001,0.0003863,7]
[314064763,1707952280993,-500.0,0.0003863,7]
[314064764,1707952281003,-500.0,0.0003863,7]
[314064765,1707952281012,-500.0,0.0003863,7]
[314064766,1707952281022,-634.90527597,0.0003863,7]
[314064767,1707952281031,-904.24,0.0003863,7]
[314064768,1707952281044,-680.52,0.0003863,7]
[314064769,1707952281054,-500.0,0.0003863,7]
[314064770,1707952281063,-645.99,0.0003863,7]
[314064771,1707952281073,-719.08,0.0003863,7]
[314064772,1707952281083,-500.0,0.0003863,7]
[314064773,1707952281092,-565.77816874,0.0003863,7]
[314064774,1707952281102,-1770.34,0.0003863,7]
[314064775,1707952281111,-786.82,0.0003863,7]
[314064776,1707952281122,-595.06,0.0003863,7]
[314064777,1707952281131,-569.0,0.0003864,2]
[314064778,1707952281140,-2000.0,0.00038641,2]
[314064779,1707952281151,-200.0,0.00038641,2]
[314064780,1707952281160,-2000.0,0.00038641,2]
[314064781,1707952281169,-200.0,0.00038641,2]
[314064782,1707952281179,-200.0,0.00038644,16]
[314064783,1707952281188,-556.2,0.00038665,2]
[314064784,1707952281197,-405.09,0.00038667,2]
[314064785,1707952281207,-1828.92,0.00038667,2]
[314064786,1707952281216,-405.09,0.00038667,2]
[314064787,1707952281226,-405.09,0.00038667,2]
[314064788,1707952281235,-405.09,0.00038667,2]
[314064789,1707952281244,-405.09,0.00038667,2]
[314064790,1707952281254,-405.09,0.00038667,2]
[314064791,1707952281264,-405.09,0.00038667,2]
[314064792,1707952281275,-402.93,0.00038667,2]
[314064793,1707952281284,-303.09,0.000387,7]
[314064794,1707952281294,-177.0,0.000387,7]
[314064795,1707952281303,-175.10730335,0.00038729,30]
[314064796,1707952281313,-158.56473754,0.00038729,120]
[314064797,1707952281323,-158.04578453,0.00038729,2]
[314064798,1707952281333,-203.0476169,0.00038729,2]
[314064799,1707952281342,-1912.95751979,0.00038729,120]
[314064800,1707952281351,-154.999999,0.00038729,2]
[314064801,1707952281361,-535.13675152,0.00038729,120]
[314064802,1707952281372,-702.01654297,0.00038729,2]
[314064803,1707952281381,-100000.0,0.00038729,15]
[314064804,1707952281391,-100000.0,0.00038729,16]
[314064805,1707952281402,-100000.0,0.00038729,17]
[314064806,1707952281412,-100000.0,0.00038729,18]
[314064807,1707952281422,-100000.0,0.00038729,19]
[314064808,1707952281431,-2979.29132282,0.00038729,30]
[314064809,1707952281441,-8060.75954446,0.00038729,2]
[314064810,1707952281451,-10979.88723697,0.00038729,2]
[314064811,1707952281460,-310.0,0.00038729,120]
[314064812,1707952281469,-2192.76909747,0.00038729,30]
[314064813,1707952281479,-1147.82957012,0.00038729,2]
[314064814,1707952281489,-1623.2814146,0.00038729,30]
[314064815,1707952281498,-461.60696894,0.00038729,15]
[314064816,1707952281508,-6000.0,0.00038729,4]
[314064817,1707952281518,-1058.19898979,0.00038729,2]
[314064818,1707952281527,-3977.71962397,0.00038729,4]
[314064819,1707952281537,-1984.42096922,0.00038729,10]
[314064820,1707952281547,-4545.82505603,0.00038729,2]
[314064821,1707952281557,-1419.31741101,0.00038729,120]
[314064822,1707952281566,-155.0,0.00038729,2]
[314064823,1707952281680,-4010.67188147,0.00038729,30]
[314064824,1707952281690,-2030.1894227,0.00038729,14]
[314064825,1707952281700,-1625.064593,0.00038729,30]
[314064826,1707952281710,-2276.75360299,0.00038744,2]
[314064827,1707952281721,-151.021521,0.00038798,21]
[314064828,1707952281732,-556.2,0.00038853,2]
[314064829,1707952281742,-195.935586,0.0003887,2]
[314064830,1707952281752,-1634.0,0.00038887,20]
[314064831,1707952281763,-337.0,0.00038887,20]
[314064832,1707952281772,-186.0,0.0003889,47]
[314064833,1707952281782,-8056.2896702,0.000389,2]
[314064834,1707952281792,-5470.12155345,0.000389,2]
[314064835,1707952281802,-500.0,0.00038904,7]
[314064836,1707952281813,-500.0,0.00038904,7]
[314064837,1707952281823,-615.56,0.00038904,7]
[314064838,1707952281833,-500.0,0.00038904,20]
[314064839,1707952281844,-500.0,0.00038904,7]
[314064840,1707952281854,-559.88,0.00038904,7]
[314064841,1707952281863,-711.99,0.00038904,7]
[314064842,1707952281872,-729.44,0.00038904,7]
[314064843,1707952281881,-559.36,0.00038904,7]
[314064844,1707952281891,-1586.82,0.00038904,7]
[314064845,1707952281900,-549.31,0.00038904,7]
[314064846,1707952281910,-500.0,0.00038904,7]
[314064847,1707952281920,-500.0,0.00038904,7]
[314064848,1707952281930,-712.41,0.00038904,7]
[314064849,1707952281940,-1388.92,0.00038904,7]
[314064850,1707952281951,-649.81,0.00038904,7]
[314064851,1707952281962,-500.0,0.00038904,7]
[314064852,1707952281972,-530.34,0.00038904,7]
[314064853,1707952281982,-496.63710641,0.00038904,7]
[314064854,1707952281991,-500.0,0.00038904,7]
[314064855,1707952282000,-500.0,0.00038904,7]
[314064856,1707952282010,-726.49,0.00038904,7]
[314064857,1707952282019,-564.24,0.00038904,7]
[314064858,1707952282029,-500.0,0.00038904,7]
[314064859,1707952282043,-598.26,0.00038904,7]
[314064860,1707952282052,-500.0,0.00038904,7]
[314064861,1707952282061,-500.0,0.00038904,7]
[314064862,1707952282070,-526.84,0.00038904,7]
[314064863,1707952282081,-789.32,0.00038904,7]
[314064864,1707952282090,-328.48276036,0.00038904,7]
[314064865,1707952282099,-500.0,0.00038904,7]
[314064866,1707952282108,-500.0,0.00038904,7]
[314064867,1707952282118,-498.63,0.00038904,7]
[314064868,1707952282127,-904.24,0.00038904,7]
[314064869,1707952282137,-680.52,0.00038904,7]
[314064870,1707952282145,-500.0,0.00038904,7]
[314064871,1707952282155,-719.08,0.00038904,7]
[314064872,1707952282164,-500.0,0.00038904,7]
[314064873,1707952282173,-1770.34,0.00038904,7]
[314064874,1707952282182,-786.82,0.00038904,7]
[314064875,1707952282191,-595.06,0.00038904,7]
[314064876,1707952282200,-100000.0,0.00039,9]
[314064877,1707952282209,-939.34,0.00039,7]
[314064878,1707952282218,-769.56,0.00039,7]
[314064879,1707952282227,-527.05116,0.0003902,2]
[314064880,1707952282236,-2000.0,0.00039028,2]
[314064881,1707952282245,-200.0,0.00039028,2]
[314064882,1707952282254,-200.0,0.00039028,2]
[314064883,1707952282264,-556.2,0.00039041,2]
[314064884,1707952282273,-1026.0,0.000391,7]
[314064885,1707952282283,-500.0,0.00039111,2]
[314064886,1707952282292,-500.0,0.00039111,2]
[314064887,1707952282302,-500.0,0.00039111,2]
[314064888,1707952282311,-500.0,0.00039111,2]
[314064889,1707952282320,-500.0,0.00039111,2]
[314064890,1707952282330,-500.0,0.00039111,2]
[314064891,1707952282341,-500.0,0.00039111,2]
[314064892,1707952282352,-500.0,0.00039111,2]
[314064893,1707952282362,-500.0,0.00039111,2]
[314064894,1707952282371,-500.0,0.00039111,2]
[314064895,1707952282380,-500.0,0.00039111,2]
[314064896,1707952282390,-500.0,0.00039111,2]
[314064897,1707952282399,-500.0,0.00039111,2]
[314064898,1707952282411,-500.0,0.00039111,2]
[314064899,1707952282421,-500.0,0.00039111,2]
[314064900,1707952282432,-500.0,0.00039111,2]
[314064901,1707952282442,-500.0,0.00039111,2]
[314064902,1707952282452,-500.0,0.00039111,2]
[314064903,1707952282462,-500.0,0.00039111,2]
[314064904,1707952282471,-500.0,0.00039111,2]
[314064905,1707952282481,-500.0,0.00039111,2]
[314064906,1707952282490,-500.0,0.00039111,2]
[314064907,1707952282499,-500.0,0.00039111,2]
[314064908,1707952282508,-500.0,0.00039111,2]
[314064909,1707952282517,-500.0,0.00039111,2]
[314064910,1707952282526,-500.0,0.00039111,2]
[314064911,1707952282535,-500.0,0.00039111,2]
[314064912,1707952282544,-500.0,0.00039111,2]
[314064913,1707952282553,-500.0,0.00039111,2]
[314064914,1707952282562,-500.0,0.00039111,2]
[314064915,1707952282571,-500.0,0.00039111,2]
[314064916,1707952282581,-500.0,0.00039111,2]
[314064917,1707952282590,-500.0,0.00039111,2]
[314064918,1707952282599,-500.0,0.00039111,2]
[314064919,1707952282607,-2812.73592981,0.00039111,10]
[314064920,1707952282617,-152.0,0.00039118,3]
[314064921,1707952282626,-500.0,0.00039178,7]
[314064922,1707952282635,-500.0,0.00039178,7]
[314064923,1707952282644,-615.56,0.00039178,7]
[314064924,1707952282653,-500.0,0.00039178,20]
[314064925,1707952282662,-500.0,0.00039178,7]
[314064926,1707952282671,-559.88,0.00039178,7]
[314064927,1707952282680,-711.99,0.00039178,7]
[314064928,1707952282690,-729.44,0.00039178,7]
[314064929,1707952282699,-559.36,0.00039178,7]
[314064930,1707952282709,-1586.82,0.00039178,7]
[314064931,1707952282718,-549.31,0.00039178,7]
[314064932,1707952282727,-500.0,0.00039178,7]
[314064933,1707952282736,-500.0,0.00039178,7]
[314064934,1707952282745,-712.41,0.00039178,7]
[314064935,1707952282754,-1388.92,0.00039178,7]
[314064936,1707952282763,-649.81,0.00039178,7]
[314064937,1707952282772,-295.02,0.00039178,7]
[314064938,1707952282781,-530.34,0.00039178,7]
[314064939,1707952282790,-500.0,0.00039178,7]
[314064940,1707952282800,-500.0,0.00039178,7]
[314064941,1707952282809,-726.49,0.00039178,7]
[314064942,1707952282818,-564.24,0.00039178,7]
[314064943,1707952282828,-521.01,0.00039178,7]
[314064944,1707952282837,-598.26,0.00039178,7]
[314064945,1707952282847,-500.0,0.00039178,7]
[314064946,1707952282857,-500.0,0.00039178,7]
[314064947,1707952282866,-526.84,0.00039178,7]
[314064948,1707952282875,-789.32,0.00039178,7]
[314064949,1707952282884,-500.0,0.00039178,7]
[314064950,1707952282893,-500.0,0.00039178,7]
[314064951,1707952282902,-904.24,0.00039178,7]
[314064952,1707952282913,-680.52,0.00039178,7]
[314064953,1707952282922,-500.0,0.00039178,7]
[314064954,1707952282931,-719.08,0.00039178,7]
[314064955,1707952282941,-500.0,0.00039178,7]
[314064956,1707952282949,-1770.34,0.00039178,7]
[314064957,1707952282958,-786.82,0.00039178,7]
[314064958,1707952282969,-595.06,0.00039178,7]
[314064959,1707952282979,-28244.7349651,0.00039187,12]
[314064960,1707952282989,-151.021522,0.00039198,22]
[314064961,1707952282999,-1000.0,0.000392,2]
[314064962,1707952283008,-1000.0,0.000392,2]
[314064963,1707952283017,-556.2,0.00039228,2]
[314064964,1707952283026,-165.67,0.00039233,2]
[314064965,1707952283036,-200.0,0.00039255,18]
[314064966,1707952283049,-766.3,0.0003926,2]
[314064967,1707952283059,-5788.40490352,0.00039267,5]
[314064968,1707952283069,-224.08623467,0.0003928,20]
[314064969,1707952283078,-1634.0,0.0003928,20]
[314064970,1707952283090,-337.0,0.0003928,20]
[314064971,1707952283100,-1202.02014715,0.0003928,20]
[314064972,1707952283111,-303.09,0.000393,7]
[314064973,1707952283121,-195.935586,0.00039344,2]
[314064974,1707952283131,-2000.0,0.00039418,2]
[314064975,1707952283140,-200.0,0.00039418,2]
[314064976,1707952283149,-6428.4014617,0.00039427,9]
[314064977,1707952283158,-500.0,0.00039452,7]
[314064978,1707952283169,-500.0,0.00039452,7]
[314064979,1707952283180,-615.56,0.00039452,7]
[314064980,1707952283189,-500.0,0.00039452,20]
[314064981,1707952283198,-498.78868844,0.00039452,7]
[314064982,1707952283208,-559.88,0.00039452,7]
[314064983,1707952283217,-711.99,0.00039452,7]
[314064984,1707952283226,-729.44,0.00039452,7]
[314064985,1707952283235,-559.36,0.00039452,7]
[314064986,1707952283245,-1586.82,0.00039452,7]
[314064987,1707952283255,-549.31,0.00039452,7]
[314064988,1707952283265,-500.0,0.00039452,7]
[314064989,1707952283275,-500.0,0.00039452,7]
[314064990,1707952283283,-712.41,0.00039452,7]
[314064991,1707952283292,-1388.92,0.00039452,7]
[314064992,1707952283302,-649.81,0.00039452,7]
[314064993,1707952283311,-530.34,0.00039452,7]
[314064994,1707952283320,-500.0,0.00039452,7]
[314064995,1707952283329,-293.56,0.00039452,7]
[314064996,1707952283338,-726.49,0.00039452,7]
[314064997,1707952283347,-564.24,0.00039452,7]
[314064998,1707952283450,-598.26,0.00039452,7]
[314064999,1707952283461,-500.0,0.00039452,7]
[314065000,1707952283471,-500.0,0.00039452,7]
[314065001,1707952283482,-526.84,0.00039452,7]
[314065002,1707952283491,-789.32,0.00039452,7]
[314065003,1707952283501,-500.0,0.00039452,7]
[314065004,1707952283510,-500.0,0.00039452,7]
[314065005,1707952283520,-904.24,0.00039452,7]
[314065006,1707952283530,-680.52,0.00039452,7]
[314065007,1707952283540,-500.0,0.00039452,7]
[314065008,1707952283549,-719.08,0.00039452,7]
[314065009,1707952283558,-500.0,0.00039452,7]
[314065010,1707952283569,-1770.34,0.00039452,7]
[314065011,1707952283579,-786.82,0.00039452,7]
[314065012,1707952283588,-595.06,0.00039452,7]
[314065013,1707952283600,-436.78,0.00039484,30]
[314065014,1707952283610,-19999.99,0.00039484,2]
[314065015,1707952283622,-14271.7,0.00039484,2]
[314065016,1707952283632,-151.021522,0.00039498,22]
[314065017,1707952283642,-939.34,0.000395,7]
[314065018,1707952283653,-769.56,0.000395,7]
[314065019,1707952283663,-153.0,0.00039544,7]
[314065020,1707952283671,-408.9,0.00039604,2]
[314065021,1707952283680,-151.0,0.00039604,2]
[314065022,1707952283689,-150.0,0.00039604,2]
[314065023,1707952283698,-591.0,0.00039604,2]
[314065024,1707952283707,-150.0,0.00039604,2]
[314065025,1707952283716,-152.35,0.00039604,2]
[314065026,1707952283725,-1062.19,0.0003963,2]
[314065027,1707952283734,-527.05115,0.0003965,2]
[314065028,1707952283743,-2430.49907642,0.00039672,2]
[314065029,1707952283753,-1634.0,0.00039673,20]
[314065030,1707952283763,-337.0,0.00039673,20]
[314065031,1707952283771,-150.0,0.00039692,7]
[314065032,1707952283780,-1400.0,0.00039692,14]
[314065033,1707952283789,-152.38,0.000397,3]
[314065034,1707952283798,-152.38,0.000397,3]